[Event "Early-Titled-Tuesday-Blitz-August-29-2023"]
[Site "Chess.com"]
[Date "2023.08.29"]
[Round "8"]
[White "Inepton_Fermion"]
[Black "Fraler15"]
[Result "1-0"]
[WhiteElo "2375"]
[BlackElo "2241"]
[TimeControl "180+1"]
[EndTime "9:27:25 PDT"]
[Termination "Inepton_Fermion won on time"]

1. Nf3 {[%clk 0:03:00]} 1... d5 {[%clk 0:02:57.5]} 2. b3 {[%clk 0:03:00.3]} 2...
Nf6 {[%clk 0:02:52.5]} 3. Bb2 {[%clk 0:03:00.6]} 3... g6 {[%clk 0:02:52]} 4. c4
{[%clk 0:02:59]} 4... dxc4 {[%clk 0:02:49.6]} 5. bxc4 {[%clk 0:02:59.9]} 5...
Bg7 {[%clk 0:02:49.1]} 6. g3 {[%clk 0:02:58.5]} 6... O-O {[%clk 0:02:48.2]} 7.
Bg2 {[%clk 0:02:59]} 7... c5 {[%clk 0:02:48.2]} 8. O-O {[%clk 0:02:58.5]} 8...
Nc6 {[%clk 0:02:47.7]} 9. Ne5 {[%clk 0:02:45.8]} 9... Nxe5 {[%clk 0:02:40.2]}
10. Bxe5 {[%clk 0:02:46.7]} 10... Qd7 {[%clk 0:02:12.5]} 11. Qc2 {[%clk
0:02:21.8]} 11... Rd8 {[%clk 0:02:11.1]} 12. d3 {[%clk 0:02:18.4]} 12... Ng4
{[%clk 0:01:57.6]} 13. Bxg7 {[%clk 0:02:17.4]} 13... Kxg7 {[%clk 0:01:56.9]} 14.
Nc3 {[%clk 0:02:17.3]} 14... Qf5 {[%clk 0:01:49]} 15. Rab1 {[%clk 0:02:12.4]}
15... Qh5 {[%clk 0:01:47.8]} 16. h3 {[%clk 0:01:57.1]} 16... Nf6 {[%clk
0:01:46.9]} 17. h4 {[%clk 0:01:34.8]} 17... g5 {[%clk 0:01:45.5]} 18. Bf3 {[%clk
0:01:15.3]} 18... Bg4 {[%clk 0:01:42.8]} 19. hxg5 {[%clk 0:01:10.3]} 19... Qxg5
{[%clk 0:01:35.2]} 20. Bg2 {[%clk 0:00:56.9]} 20... b6 {[%clk 0:01:07.5]} 21.
Ne4 {[%clk 0:00:54.9]} 21... Nxe4 {[%clk 0:01:06.7]} 22. Bxe4 {[%clk 0:00:55.8]}
22... Rac8 {[%clk 0:01:03]} 23. Kg2 {[%clk 0:00:52]} 23... e6 {[%clk 0:00:52.5]}
24. Rh1 {[%clk 0:00:50.3]} 24... f5 {[%clk 0:00:51.7]} 25. Bb7 {[%clk
0:00:43.9]} 25... Rc7 {[%clk 0:00:51.1]} 26. Bf3 {[%clk 0:00:39.6]} 26... Bxf3+
{[%clk 0:00:48.6]} 27. Kxf3 {[%clk 0:00:40.1]} 27... e5 {[%clk 0:00:41.7]} 28.
Qb2 {[%clk 0:00:35]} 28... Re7 {[%clk 0:00:35.5]} 29. Kg2 {[%clk 0:00:34.6]}
29... Kg8 {[%clk 0:00:34.5]} 30. Rh4 {[%clk 0:00:33.3]} 30... Rd4 {[%clk
0:00:26.5]} 31. Rbh1 {[%clk 0:00:29.8]} 31... f4 {[%clk 0:00:23.3]} 32. Rh5
{[%clk 0:00:21.7]} 32... Qg7 {[%clk 0:00:22.3]} 33. R1h3 {[%clk 0:00:20]} 33...
Kh8 {[%clk 0:00:19.1]} 34. a4 {[%clk 0:00:15.3]} 34... Rf7 {[%clk 0:00:16.2]}
35. a5 {[%clk 0:00:13.9]} 35... Qf6 {[%clk 0:00:15]} 36. e3 {[%clk 0:00:07.9]}
36... fxe3 {[%clk 0:00:14.3]} 37. f4 {[%clk 0:00:03.3]} 37... exf4 {[%clk
0:00:12.7]} 38. g4 {[%clk 0:00:02.4]} 38... f3+ {[%clk 0:00:12.5]} 39. Kg1
{[%clk 0:00:01.6]} 39... e2 {[%clk 0:00:10.5]} 40. Kf2 {[%clk 0:00:01.3]} 40...
Qf4 {[%clk 0:00:08]} 41. g5 {[%clk 0:00:01.1]} 41... e1=Q+ {[%clk 0:00:07.5]}
42. Kxe1 {[%clk 0:00:01.4]} 42... Qe3+ {[%clk 0:00:07.7]} 43. Kf1 {[%clk
0:00:01.7]} 43... Qxd3+ {[%clk 0:00:07.8]} 44. Kf2 {[%clk 0:00:01.5]} 1-0

[Event "Early-Titled-Tuesday-Blitz-August-29-2023"]
[Site "Chess.com"]
[Date "2023.08.29"]
[Round "8"]
[White "joppie2"]
[Black "Jospem"]
[Result "1/2-1/2"]
[WhiteElo "2949"]
[BlackElo "3056"]
[TimeControl "180+1"]
[EndTime "9:27:26 PDT"]
[Termination "Game drawn by repetition"]

1. e4 {[%clk 0:03:00.9]} 1... c5 {[%clk 0:02:59]} 2. Nf3 {[%clk 0:03:01.4]} 2...
d6 {[%clk 0:02:59.2]} 3. d4 {[%clk 0:03:01.9]} 3... cxd4 {[%clk 0:03:00.1]} 4.
Nxd4 {[%clk 0:03:02.7]} 4... a6 {[%clk 0:02:59.7]} 5. c4 {[%clk 0:03:02]} 5...
e6 {[%clk 0:02:59.8]} 6. Nc3 {[%clk 0:03:02.5]} 6... Nf6 {[%clk 0:03:00]} 7. Be2
{[%clk 0:03:03.2]} 7... b6 {[%clk 0:02:59.4]} 8. Be3 {[%clk 0:03:01.7]} 8... Bb7
{[%clk 0:02:59.5]} 9. f3 {[%clk 0:03:02.3]} 9... h5 {[%clk 0:02:59.4]} 10. Qd2
{[%clk 0:03:01.5]} 10... Nbd7 {[%clk 0:02:59.6]} 11. O-O-O {[%clk 0:02:47.5]}
11... Be7 {[%clk 0:02:57.2]} 12. Kb1 {[%clk 0:02:47.9]} 12... Rc8 {[%clk
0:02:56.2]} 13. Rc1 {[%clk 0:02:46.8]} 13... O-O {[%clk 0:02:51.2]} 14. h3
{[%clk 0:02:44.1]} 14... h4 {[%clk 0:02:47.9]} 15. Rhd1 {[%clk 0:02:33.7]} 15...
Ne5 {[%clk 0:02:46.3]} 16. b3 {[%clk 0:02:34.2]} 16... Nfd7 {[%clk 0:02:45.1]}
17. f4 {[%clk 0:02:32.5]} 17... Nc6 {[%clk 0:02:45.4]} 18. Nf3 {[%clk
0:02:25.5]} 18... Nc5 {[%clk 0:02:38.8]} 19. Qe1 {[%clk 0:02:14.6]} 19... Qc7
{[%clk 0:02:19.7]} 20. Ng5 {[%clk 0:02:12.5]} 20... Bxg5 {[%clk 0:01:57.8]} 21.
fxg5 {[%clk 0:02:13.4]} 21... Ne5 {[%clk 0:01:58.6]} 22. Qxh4 {[%clk 0:02:13.1]}
22... Ng6 {[%clk 0:01:59.3]} 23. Qg4 {[%clk 0:02:07.5]} 23... Ne5 {[%clk
0:01:59.6]} 24. Qf4 {[%clk 0:02:07.5]} 24... f5 {[%clk 0:01:55.4]} 25. gxf6
{[%clk 0:01:58.3]} 25... Rxf6 {[%clk 0:01:55.2]} 26. Qh4 {[%clk 0:01:58.9]}
26... Rcf8 {[%clk 0:01:47.9]} 27. Ka1 {[%clk 0:01:57.6]} 27... Ng6 {[%clk
0:01:38.3]} 28. Qg3 {[%clk 0:01:57.2]} 28... Ne5 {[%clk 0:01:39.1]} 29. Bd4
{[%clk 0:01:53.9]} 29... Rg6 {[%clk 0:01:23.5]} 30. Qe3 {[%clk 0:01:51.4]} 30...
Nc6 {[%clk 0:01:12.8]} 31. Bg4 {[%clk 0:01:43.4]} 31... e5 {[%clk 0:01:02.7]}
32. Bxc5 {[%clk 0:01:44]} 32... bxc5 {[%clk 0:01:03.6]} 33. Nd5 {[%clk
0:01:39.3]} 33... Qd8 {[%clk 0:01:03.8]} 34. Bf5 {[%clk 0:01:29.7]} 34... Rh6
{[%clk 0:01:04.4]} 35. Rf1 {[%clk 0:01:12.7]} 35... Nd4 {[%clk 0:01:03.6]} 36.
Kb2 {[%clk 0:01:07.2]} 36... Bxd5 {[%clk 0:01:00]} 37. cxd5 {[%clk 0:01:08.1]}
37... Rhf6 {[%clk 0:00:59.9]} 38. g4 {[%clk 0:00:55.5]} 38... g6 {[%clk
0:00:41]} 39. Rg1 {[%clk 0:00:55.9]} 39... a5 {[%clk 0:00:32.6]} 40. h4 {[%clk
0:00:50.9]} 40... a4 {[%clk 0:00:33.2]} 41. h5 {[%clk 0:00:51.4]} 41... axb3
{[%clk 0:00:27.6]} 42. axb3 {[%clk 0:00:41.4]} 42... gxf5 {[%clk 0:00:19.9]} 43.
gxf5+ {[%clk 0:00:42.3]} 43... Kh8 {[%clk 0:00:20.6]} 44. Rg6 {[%clk 0:00:41.9]}
44... R6f7 {[%clk 0:00:21.2]} 45. Rcg1 {[%clk 0:00:41.5]} 45... Rh7 {[%clk
0:00:21.6]} 46. Rh6 {[%clk 0:00:23.7]} 46... Qe7 {[%clk 0:00:18.7]} 47. Rxh7+
{[%clk 0:00:18.5]} 47... Qxh7 {[%clk 0:00:19.6]} 48. Rg6 {[%clk 0:00:18.7]}
48... Rb8 {[%clk 0:00:17.1]} 49. Qg5 {[%clk 0:00:16.7]} 49... Rxb3+ {[%clk
0:00:16]} 50. Kc1 {[%clk 0:00:17.5]} 50... Rc3+ {[%clk 0:00:16.7]} 51. Kd1
{[%clk 0:00:16.4]} 51... Rd3+ {[%clk 0:00:17.1]} 52. Kc1 {[%clk 0:00:16.5]}
52... Rc3+ {[%clk 0:00:17.4]} 53. Kd1 {[%clk 0:00:16]} 53... Rd3+ {[%clk
0:00:17]} 54. Kc1 {[%clk 0:00:16.3]} 54... Rc3+ {[%clk 0:00:12.1]} 1/2-1/2

[Event "Early-Titled-Tuesday-Blitz-August-29-2023"]
[Site "Chess.com"]
[Date "2023.08.29"]
[Round "8"]
[White "Let_it_be_1"]
[Black "Aswathchess"]
[Result "0-1"]
[WhiteElo "2619"]
[BlackElo "2525"]
[TimeControl "180+1"]
[EndTime "9:27:27 PDT"]
[Termination "Aswathchess won by resignation"]

1. e4 {[%clk 0:03:00.9]} 1... c5 {[%clk 0:02:56.1]} 2. Nf3 {[%clk 0:03:00]} 2...
d6 {[%clk 0:02:56.2]} 3. d4 {[%clk 0:02:59.9]} 3... cxd4 {[%clk 0:02:57.1]} 4.
Nxd4 {[%clk 0:03:00.2]} 4... Nf6 {[%clk 0:02:57.7]} 5. Nc3 {[%clk 0:03:00.2]}
5... a6 {[%clk 0:02:58.1]} 6. Be2 {[%clk 0:03:00.2]} 6... e5 {[%clk 0:02:57.8]}
7. Nb3 {[%clk 0:03:00.3]} 7... Be6 {[%clk 0:02:58.1]} 8. f4 {[%clk 0:02:59.5]}
8... Nc6 {[%clk 0:02:55.1]} 9. O-O {[%clk 0:02:58.8]} 9... Be7 {[%clk
0:02:54.3]} 10. f5 {[%clk 0:02:59]} 10... Bxb3 {[%clk 0:02:54.2]} 11. axb3
{[%clk 0:02:58.6]} 11... O-O {[%clk 0:02:51.1]} 12. Bc4 {[%clk 0:02:56.4]} 12...
b5 {[%clk 0:02:49.4]} 13. Bd5 {[%clk 0:02:56.5]} 13... Qb6+ {[%clk 0:02:47.2]}
14. Kh1 {[%clk 0:02:56]} 14... Rac8 {[%clk 0:02:46.3]} 15. Bg5 {[%clk
0:02:47.1]} 15... Nb4 {[%clk 0:02:45.8]} 16. Bxf6 {[%clk 0:02:43.4]} 16... Bxf6
{[%clk 0:02:46.7]} 17. Qe2 {[%clk 0:02:35.9]} 17... Rc7 {[%clk 0:02:39.2]} 18.
Rfd1 {[%clk 0:02:31]} 18... Rfc8 {[%clk 0:02:38.2]} 19. g3 {[%clk 0:02:26.6]}
19... Kh8 {[%clk 0:02:14.6]} 20. h4 {[%clk 0:02:25.1]} 20... Be7 {[%clk
0:02:12.8]} 21. Rd2 {[%clk 0:02:22.3]} 21... h6 {[%clk 0:02:09.1]} 22. Kg2
{[%clk 0:02:21.8]} 22... Bf8 {[%clk 0:02:01.3]} 23. Qh5 {[%clk 0:02:16.9]} 23...
Qe3 {[%clk 0:01:57.7]} 24. Re2 {[%clk 0:02:11.4]} 24... Qd4 {[%clk 0:01:57.4]}
25. Rd1 {[%clk 0:02:10.6]} 25... Qa7 {[%clk 0:01:56]} 26. f6 {[%clk 0:02:05.8]}
26... g6 {[%clk 0:01:54.1]} 27. Qf3 {[%clk 0:02:01.5]} 27... Nxd5 {[%clk
0:01:54]} 28. Nxd5 {[%clk 0:01:50.6]} 28... Rxc2 {[%clk 0:01:54]} 29. h5 {[%clk
0:01:47.5]} 29... Rc1 {[%clk 0:01:41.2]} 30. Rxc1 {[%clk 0:01:27.4]} 30... Rxc1
{[%clk 0:01:42.1]} 31. Rf2 {[%clk 0:01:27.9]} 31... g5 {[%clk 0:01:33.9]} 32.
Qd3 {[%clk 0:01:11]} 32... Qc5 {[%clk 0:01:14.9]} 33. b4 {[%clk 0:01:07.3]}
33... Qc8 {[%clk 0:00:53.6]} 34. Ne3 {[%clk 0:00:58.9]} 34... d5 {[%clk
0:00:29.2]} 35. exd5 {[%clk 0:00:56.8]} 35... Bxb4 {[%clk 0:00:25.7]} 36. d6
{[%clk 0:00:56.1]} 36... Qc6+ {[%clk 0:00:23.7]} 37. Nd5 {[%clk 0:00:50.2]}
37... Rc4 {[%clk 0:00:19.7]} 38. Kh2 {[%clk 0:00:45.8]} 38... Bxd6 {[%clk
0:00:18.3]} 39. Ne7 {[%clk 0:00:43.8]} 39... Qc5 {[%clk 0:00:18.8]} 40. Rd2
{[%clk 0:00:41.4]} 40... Bxe7 {[%clk 0:00:18.7]} 41. fxe7 {[%clk 0:00:40.8]}
41... Qxe7 {[%clk 0:00:19.6]} 42. Qf5 {[%clk 0:00:39.1]} 42... Kg7 {[%clk
0:00:19.4]} 43. Rd7 {[%clk 0:00:38.3]} 43... Qf6 {[%clk 0:00:19.9]} 44. Qd3
{[%clk 0:00:33.4]} 44... Rc1 {[%clk 0:00:18.3]} 45. Kg2 {[%clk 0:00:32.2]} 45...
Rc4 {[%clk 0:00:13.8]} 46. b3 {[%clk 0:00:30.8]} 46... Rd4 {[%clk 0:00:13.6]}
47. Rxd4 {[%clk 0:00:28.6]} 47... exd4 {[%clk 0:00:14.5]} 48. Qe4 {[%clk
0:00:27.8]} 48... a5 {[%clk 0:00:12.9]} 49. Qd5 {[%clk 0:00:26.9]} 49... a4
{[%clk 0:00:13]} 50. Qxb5 {[%clk 0:00:26.3]} 50... a3 {[%clk 0:00:13.1]} 51. Qa4
{[%clk 0:00:25.4]} 51... Qd6 {[%clk 0:00:13.7]} 52. Qxa3 {[%clk 0:00:24.6]}
52... Qxa3 {[%clk 0:00:13.3]} 0-1

[Event "Early-Titled-Tuesday-Blitz-August-29-2023"]
[Site "Chess.com"]
[Date "2023.08.29"]
[Round "8"]
[White "Xavier_mompel"]
[Black "guillembaches"]
[Result "0-1"]
[WhiteElo "2307"]
[BlackElo "2429"]
[TimeControl "180+1"]
[EndTime "9:27:28 PDT"]
[Termination "guillembaches won on time"]

1. e4 {[%clk 0:03:00.9]} 1... d5 {[%clk 0:03:00.6]} 2. exd5 {[%clk 0:03:00.7]}
2... Qxd5 {[%clk 0:03:01.2]} 3. d4 {[%clk 0:03:01]} 3... e5 {[%clk 0:02:58.7]}
4. dxe5 {[%clk 0:02:56.3]} 4... Qxe5+ {[%clk 0:02:58.2]} 5. Qe2 {[%clk
0:02:54.3]} 5... Nc6 {[%clk 0:02:50.4]} 6. Nf3 {[%clk 0:02:48.1]} 6... Qxe2+
{[%clk 0:02:49.3]} 7. Bxe2 {[%clk 0:02:49]} 7... Bf5 {[%clk 0:02:45.2]} 8. c3
{[%clk 0:02:43.4]} 8... O-O-O {[%clk 0:02:42.7]} 9. O-O {[%clk 0:02:41.5]} 9...
Bd6 {[%clk 0:02:34]} 10. Be3 {[%clk 0:02:39.4]} 10... Nf6 {[%clk 0:02:28.3]} 11.
Nbd2 {[%clk 0:02:35.7]} 11... Nd5 {[%clk 0:02:19.1]} 12. Bd4 {[%clk 0:02:14.2]}
12... Nxd4 {[%clk 0:02:04.1]} 13. Nxd4 {[%clk 0:02:15.1]} 13... Bg6 {[%clk
0:01:56.2]} 14. Bf3 {[%clk 0:01:57.3]} 14... Nf4 {[%clk 0:01:48.8]} 15. Ne4
{[%clk 0:01:55.3]} 15... Be5 {[%clk 0:01:34.7]} 16. Nb3 {[%clk 0:01:49.4]} 16...
b6 {[%clk 0:01:24.4]} 17. Rad1 {[%clk 0:01:37.7]} 17... Rxd1 {[%clk 0:01:18.8]}
18. Rxd1 {[%clk 0:01:38.6]} 18... Rd8 {[%clk 0:01:17]} 19. Rxd8+ {[%clk
0:01:35.1]} 19... Kxd8 {[%clk 0:01:17.3]} 20. Nc1 {[%clk 0:01:25.3]} 20... Ke7
{[%clk 0:01:05.9]} 21. g3 {[%clk 0:01:22.5]} 21... Ne6 {[%clk 0:01:02.4]} 22.
Kf1 {[%clk 0:01:18.6]} 22... f5 {[%clk 0:00:54.2]} 23. Nd2 {[%clk 0:01:17.9]}
23... f4 {[%clk 0:00:53.3]} 24. Ke2 {[%clk 0:01:05.6]} 24... fxg3 {[%clk
0:00:47.7]} 25. hxg3 {[%clk 0:01:06.5]} 25... Nc5 {[%clk 0:00:45.3]} 26. Nc4
{[%clk 0:00:56.7]} 26... Bf6 {[%clk 0:00:40.8]} 27. Ne3 {[%clk 0:00:56.6]} 27...
Kd6 {[%clk 0:00:33.1]} 28. Nc4+ {[%clk 0:00:32.7]} 28... Ke7 {[%clk 0:00:32.7]}
29. Ne3 {[%clk 0:00:33]} 29... Bg5 {[%clk 0:00:32.9]} 30. Nb3 {[%clk 0:00:30.5]}
30... Na4 {[%clk 0:00:31.1]} 31. Nd1 {[%clk 0:00:17.9]} 31... Bc2 {[%clk
0:00:28.1]} 32. Bd5 {[%clk 0:00:03.5]} 32... Bxd1+ {[%clk 0:00:26.1]} 33. Kxd1
{[%clk 0:00:04.4]} 33... Nxb2+ {[%clk 0:00:26.3]} 34. Kc2 {[%clk 0:00:04.9]}
34... Na4 {[%clk 0:00:26.6]} 35. Kd3 {[%clk 0:00:02.9]} 35... Kd6 {[%clk
0:00:26.4]} 36. Be4 {[%clk 0:00:02.3]} 36... Bf6 {[%clk 0:00:26.2]} 37. c4
{[%clk 0:00:02.2]} 37... h5 {[%clk 0:00:25.6]} 38. Nd2 {[%clk 0:00:01.2]} 38...
g5 {[%clk 0:00:23.5]} 39. Ke3 {[%clk 0:00:01.2]} 39... h4 {[%clk 0:00:23]} 40.
gxh4 {[%clk 0:00:01.3]} 40... gxh4 {[%clk 0:00:23.2]} 41. Nf3 {[%clk 0:00:02]}
41... Nc3 {[%clk 0:00:21.2]} 42. Bd3 {[%clk 0:00:01.7]} 42... Nxa2 {[%clk
0:00:19.9]} 43. Kf4 {[%clk 0:00:02.1]} 43... Nb4 {[%clk 0:00:19.5]} 44. Be4
{[%clk 0:00:01.8]} 44... a5 {[%clk 0:00:19.2]} 45. Kf5 {[%clk 0:00:02.3]} 45...
Bd8 {[%clk 0:00:19.3]} 46. Kg4 {[%clk 0:00:02.7]} 46... a4 {[%clk 0:00:19.5]}
47. Nd4 {[%clk 0:00:02.1]} 47... Kc5 {[%clk 0:00:17.6]} 0-1

[Event "Early-Titled-Tuesday-Blitz-August-29-2023"]
[Site "Chess.com"]
[Date "2023.08.29"]
[Round "8"]
[White "Kirill_Klukin"]
[Black "YouJustFoundYourGodfather"]
[Result "0-1"]
[WhiteElo "2796"]
[BlackElo "2616"]
[TimeControl "180+1"]
[EndTime "9:27:31 PDT"]
[Termination "YouJustFoundYourGodfather won by resignation"]

1. d4 {[%clk 0:03:00.9]} 1... Nf6 {[%clk 0:02:55.9]} 2. Nf3 {[%clk 0:03:00.8]}
2... d5 {[%clk 0:02:55.7]} 3. c4 {[%clk 0:03:00.8]} 3... c6 {[%clk 0:02:56.3]}
4. Nc3 {[%clk 0:03:00.9]} 4... dxc4 {[%clk 0:02:55.7]} 5. e3 {[%clk 0:03:00.8]}
5... b5 {[%clk 0:02:54.6]} 6. a4 {[%clk 0:03:01.5]} 6... b4 {[%clk 0:02:54.2]}
7. Na2 {[%clk 0:03:02.2]} 7... e6 {[%clk 0:02:52.5]} 8. Bxc4 {[%clk 0:03:02.8]}
8... Be7 {[%clk 0:02:42.8]} 9. O-O {[%clk 0:03:02.3]} 9... O-O {[%clk
0:02:43.4]} 10. Qe2 {[%clk 0:03:02.6]} 10... Bb7 {[%clk 0:02:41]} 11. Rd1 {[%clk
0:03:03]} 11... a5 {[%clk 0:02:40.4]} 12. Bd2 {[%clk 0:03:02.2]} 12... Nbd7
{[%clk 0:02:41]} 13. Be1 {[%clk 0:03:02.5]} 13... Qb8 {[%clk 0:02:36.6]} 14. Nc1
{[%clk 0:03:01.4]} 14... c5 {[%clk 0:02:36.5]} 15. Bb5 {[%clk 0:03:00.6]} 15...
Rd8 {[%clk 0:02:34.2]} 16. Nb3 {[%clk 0:03:00.6]} 16... cxd4 {[%clk 0:02:30.4]}
17. Nfxd4 {[%clk 0:03:00.7]} 17... Ne5 {[%clk 0:02:23.3]} 18. f3 {[%clk
0:02:58.5]} 18... Qa7 {[%clk 0:02:09.5]} 19. Bg3 {[%clk 0:02:54.5]} 19... Ng6
{[%clk 0:02:02.9]} 20. Nc6 {[%clk 0:02:44.5]} 20... Bxc6 {[%clk 0:02:02.6]} 21.
Bxc6 {[%clk 0:02:45.4]} 21... Rac8 {[%clk 0:02:03]} 22. Bb5 {[%clk 0:02:45.9]}
22... Rxd1+ {[%clk 0:01:51.2]} 23. Rxd1 {[%clk 0:02:45.7]} 23... h5 {[%clk
0:01:44.5]} 24. Nd4 {[%clk 0:02:44.5]} 24... Bc5 {[%clk 0:01:39.4]} 25. Bf2
{[%clk 0:02:27.7]} 25... Nd5 {[%clk 0:01:38]} 26. h4 {[%clk 0:02:12.6]} 26...
Qb6 {[%clk 0:01:36.6]} 27. Rd3 {[%clk 0:02:05.4]} 27... Ndf4 {[%clk 0:00:39]}
28. exf4 {[%clk 0:01:30.4]} 28... Nxf4 {[%clk 0:00:39.9]} 29. Qe4 {[%clk
0:01:00.5]} 29... Nxd3 {[%clk 0:00:40.2]} 30. Bxd3 {[%clk 0:01:01.2]} 30... Rd8
{[%clk 0:00:32.3]} 31. Nc6 {[%clk 0:00:39.9]} 31... Bxf2+ {[%clk 0:00:31.3]} 32.
Kf1 {[%clk 0:00:40.1]} 32... Rxd3 {[%clk 0:00:22.2]} 33. Qxd3 {[%clk 0:00:33.8]}
33... Bxh4 {[%clk 0:00:15.9]} 34. Qd4 {[%clk 0:00:15.7]} 34... Qxc6 {[%clk
0:00:13.1]} 35. Qxh4 {[%clk 0:00:15.4]} 35... Qc1+ {[%clk 0:00:13.3]} 36. Kf2
{[%clk 0:00:15.5]} 36... Qxb2+ {[%clk 0:00:13.8]} 37. Kg1 {[%clk 0:00:16.3]}
37... Qa1+ {[%clk 0:00:07.7]} 38. Kf2 {[%clk 0:00:15.6]} 38... Qb2+ {[%clk
0:00:05]} 39. Kg1 {[%clk 0:00:15.5]} 39... g6 {[%clk 0:00:04.6]} 40. Qd8+ {[%clk
0:00:15.2]} 40... Kg7 {[%clk 0:00:05.3]} 41. Qxa5 {[%clk 0:00:15.9]} 41... b3
{[%clk 0:00:06]} 42. Kh2 {[%clk 0:00:14.6]} 42... Qf6 {[%clk 0:00:04.6]} 43. Qb5
{[%clk 0:00:14]} 43... b2 {[%clk 0:00:02.8]} 44. a5 {[%clk 0:00:14.3]} 44...
Qh4+ {[%clk 0:00:02.6]} 0-1

[Event "Early-Titled-Tuesday-Blitz-August-29-2023"]
[Site "Chess.com"]
[Date "2023.08.29"]
[Round "8"]
[White "KejJaj"]
[Black "InitiatingASC"]
[Result "1-0"]
[WhiteElo "2186"]
[BlackElo "2327"]
[TimeControl "180+1"]
[EndTime "9:27:34 PDT"]
[Termination "KejJaj won on time"]

1. d4 {[%clk 0:03:00.9]} 1... d5 {[%clk 0:02:58.1]} 2. Bf4 {[%clk 0:03:01.2]}
2... e6 {[%clk 0:02:55.7]} 3. e3 {[%clk 0:03:01.5]} 3... Nf6 {[%clk 0:02:55.7]}
4. Nf3 {[%clk 0:03:01.1]} 4... c5 {[%clk 0:02:55.8]} 5. c3 {[%clk 0:03:00.4]}
5... cxd4 {[%clk 0:02:53.2]} 6. exd4 {[%clk 0:02:59.5]} 6... Bd6 {[%clk
0:02:48.4]} 7. Ne5 {[%clk 0:02:55.7]} 7... O-O {[%clk 0:02:47.9]} 8. Nd2 {[%clk
0:02:51.6]} 8... Nc6 {[%clk 0:02:44.1]} 9. h3 {[%clk 0:02:34.7]} 9... Ne7 {[%clk
0:02:33.5]} 10. Ndf3 {[%clk 0:02:27]} 10... Ng6 {[%clk 0:02:33.5]} 11. Bh2
{[%clk 0:02:17.7]} 11... Rb8 {[%clk 0:02:23.3]} 12. a4 {[%clk 0:02:10.7]} 12...
a6 {[%clk 0:02:15.6]} 13. Bd3 {[%clk 0:02:09]} 13... Qc7 {[%clk 0:02:13.1]} 14.
O-O {[%clk 0:02:04.1]} 14... Nd7 {[%clk 0:02:10.3]} 15. Bxg6 {[%clk 0:01:55.7]}
15... hxg6 {[%clk 0:02:06.8]} 16. Qe2 {[%clk 0:01:53.1]} 16... Nxe5 {[%clk
0:01:52.2]} 17. Bxe5 {[%clk 0:01:52.2]} 17... Bd7 {[%clk 0:01:44.9]} 18. Bxd6
{[%clk 0:01:05.4]} 18... Qxd6 {[%clk 0:01:43.1]} 19. Ne5 {[%clk 0:01:05.9]}
19... Rfc8 {[%clk 0:01:38.8]} 20. Qf3 {[%clk 0:01:03]} 20... Be8 {[%clk
0:01:37.5]} 21. h4 {[%clk 0:01:02]} 21... f6 {[%clk 0:01:33.1]} 22. Nd3 {[%clk
0:00:58.1]} 22... Bf7 {[%clk 0:01:33.4]} 23. Nc5 {[%clk 0:00:52.2]} 23... e5
{[%clk 0:01:26.8]} 24. Rfe1 {[%clk 0:00:48]} 24... e4 {[%clk 0:01:15.8]} 25. Qe2
{[%clk 0:00:40.7]} 25... f5 {[%clk 0:00:57.9]} 26. g3 {[%clk 0:00:40.7]} 26...
Rf8 {[%clk 0:00:41]} 27. Qe3 {[%clk 0:00:38.7]} 27... Be8 {[%clk 0:00:36.8]} 28.
Qf4 {[%clk 0:00:38.1]} 28... Qxf4 {[%clk 0:00:29.1]} 29. gxf4 {[%clk 0:00:39]}
29... Kf7 {[%clk 0:00:28.1]} 30. b4 {[%clk 0:00:36.7]} 30... Ke7 {[%clk
0:00:27.6]} 31. Re3 {[%clk 0:00:35.5]} 31... Rh8 {[%clk 0:00:26.1]} 32. Rh3
{[%clk 0:00:35]} 32... Kd6 {[%clk 0:00:21.5]} 33. Kg2 {[%clk 0:00:35.4]} 33...
Rh5 {[%clk 0:00:19.7]} 34. Rb1 {[%clk 0:00:34.1]} 34... Bd7 {[%clk 0:00:18.3]}
35. Re1 {[%clk 0:00:33]} 35... Bc6 {[%clk 0:00:18.1]} 36. Rb1 {[%clk 0:00:32.4]}
36... Rbh8 {[%clk 0:00:16.2]} 37. Kg3 {[%clk 0:00:31.2]} 37... b6 {[%clk
0:00:15.5]} 38. Nxa6 {[%clk 0:00:30]} 38... Bxa4 {[%clk 0:00:14.1]} 39. b5
{[%clk 0:00:28]} 39... Bc2 {[%clk 0:00:12.1]} 40. Rb2 {[%clk 0:00:27.2]} 40...
Bd3 {[%clk 0:00:12.2]} 41. Nb4 {[%clk 0:00:26.8]} 41... Bc4 {[%clk 0:00:12.6]}
42. Nc6 {[%clk 0:00:26.2]} 42... Bxb5 {[%clk 0:00:12]} 43. Ne5 {[%clk
0:00:22.1]} 43... Bf1 {[%clk 0:00:06.8]} 44. Rh1 {[%clk 0:00:22.2]} 44... Bc4
{[%clk 0:00:03.5]} 45. Rxb6+ {[%clk 0:00:22.7]} 45... Kc7 {[%clk 0:00:03.7]} 46.
Rxg6 {[%clk 0:00:22.4]} 46... R8h7 {[%clk 0:00:03]} 47. Re6 {[%clk 0:00:20.3]}
47... R5h6 {[%clk 0:00:02.9]} 48. Re7+ {[%clk 0:00:20.4]} 48... Kd6 {[%clk
0:00:02.8]} 49. Rd7+ {[%clk 0:00:19.8]} 49... Ke6 {[%clk 0:00:03.4]} 50. Rb7
{[%clk 0:00:16.5]} 50... g5 {[%clk 0:00:03.2]} 51. fxg5 {[%clk 0:00:15]} 51...
Rxb7 {[%clk 0:00:03.1]} 52. gxh6 {[%clk 0:00:14.6]} 52... Rh7 {[%clk 0:00:02.7]}
53. h5 {[%clk 0:00:13.3]} 53... Rxh6 {[%clk 0:00:03.1]} 54. Kh4 {[%clk
0:00:13.7]} 54... Rh8 {[%clk 0:00:01.5]} 55. Kg5 {[%clk 0:00:12.6]} 1-0